bitfinex-derivatives/quotes_ETHF0:USTF0_20260207
["timestamp","ask_amount","ask_price","bid_price","bid_amount"]
[1770505501219,8.73885252,2087.6,2086.4,4.17071258]
[1770505501220,40.22255022,2087.3,2086.5,0.57542607]
[1770505501411,5.61124723,2087.6,2086.5,0.57542607]
[1770505501614,5.61124723,2087.9,2086.7,0.57542607]
[1770505501823,5.61124723,2088.0,2086.7,0.57542607]
[1770505502016,5.61124723,2088.0,2086.9,0.57542607]
[1770505502212,5.61124723,2087.8,2086.5,0.57542607]
[1770505502718,5.61124723,2087.8,2086.7,0.57542607]
[1770505503314,5.61597614,2088.0,2086.9,0.57542607]
[1770505503519,0.00472891,2088.0,2086.9,0.57542607]
[1770505503719,0.00472891,2088.0,2087.1,0.57542607]
[1770505504220,0.00472891,2088.0,2087.3,0.57542607]
[1770505504419,5.61124723,2088.7,2087.3,0.57542607]
[1770505504621,7.26363614,2089.0,2087.5,0.57542607]
[1770505504622,5.61124723,2088.8,2087.5,0.57542607]
[1770505504923,5.61124723,2088.8,2087.7,0.57542607]
[1770505505324,5.61124723,2088.8,2086.8,5.7151924]
[1770505505325,5.61124723,2088.8,2087.8,4.74613865]
[1770505505522,5.61124723,2088.8,2087.8,0.58032403]
[1770505505717,0.00582482,2088.8,2088.0,0.56492299]
[1770505506118,0.00582482,2088.8,2088.2,0.56484503]
[1770505506625,0.00582482,2088.8,2087.8,0.00489796]
[1770505506626,5.61124723,2089.2,2088.3,4.73555761]
[1770505506830,5.61124723,2089.3,2088.3,0.56484503]
[1770505507126,5.61124723,2089.4,2088.5,0.56481645]
[1770505507423,5.62124723,2089.6,2088.5,0.56481645]
[1770505507621,5.62627133,2089.6,2088.6,4.73552903]
[1770505507927,0.0150241,2089.6,2088.7,0.56481645]
[1770505509120,0.0150241,2089.6,2088.9,0.56222249]
[1770505509628,0.0150241,2089.6,2089.0,4.73293507]
[1770505509820,5.61124723,2090.0,2089.2,0.56222249]
[1770505510024,5.61124723,2090.2,2088.3,0.56222249]
[1770505510623,5.61124723,2090.0,2088.4,4.73293507]
[1770505510920,5.61124723,2089.8,2088.4,0.56222249]
[1770505511118,5.61124723,2089.7,2088.5,4.73683327]
[1770505511321,5.61124723,2089.8,2088.5,0.56612069]
[1770505511527,0.02773924,2089.7,2088.6,4.17071258]
[1770505511924,5.63898647,2089.7,2088.6,4.17071258]
[1770505512124,0.0278049,2089.6,2088.6,4.17071258]
[1770505512321,0.0278049,2089.4,2088.1,0.57433286]
[1770505515226,0.02888531,2089.2,2088.2,4.17071258]
[1770505515426,0.02888531,2089.2,2088.0,0.57433286]
[1770505515731,0.02888531,2089.2,2088.1,4.74504544]
[1770505516032,0.02888531,2089.2,2088.1,0.57433286]
[1770505516232,0.02888531,2089.2,2088.2,4.17071258]
[1770505517137,0.0284377,2089.1,2088.2,4.17071258]
[1770505517336,0.0284377,2089.1,2088.3,0.57433286]
[1770505517834,0.0284377,2089.1,2088.4,4.17071258]
[1770505521638,0.0284377,2089.1,2088.2,0.57433286]
[1770505521838,0.0284377,2089.1,2088.3,4.17071258]
[1770505522240,0.0284377,2089.1,2088.4,0.57433286]
[1770505522542,0.02800258,2089.0,2088.4,0.57433286]
[1770505522735,0.02800258,2089.0,2088.5,4.74504544]
[1770505522937,5.63925046,2089.5,2088.6,0.57433286]
[1770505523137,0.02800323,2089.5,2088.6,0.57433286]
[1770505523637,0.02800323,2089.5,2088.7,4.17071258]
[1770505523837,0.02800323,2089.5,2088.4,0.57433286]
[1770505524336,0.02800323,2089.5,2088.6,0.57433286]
[1770505524840,0.02800323,2089.5,2088.8,0.57433286]
[1770505525442,0.02800323,2089.5,2088.9,4.17071258]
[1770505525640,0.02800323,2089.5,2088.9,4.74504544]
[1770505526736,0.02800323,2089.5,2088.9,4.17071258]
[1770505526940,0.01271544,2089.2,2087.9,0.57433286]
[1770505527135,0.01271544,2089.1,2087.9,0.57433286]
[1770505527741,0.01271544,2088.9,2087.9,0.57433286]
[1770505528040,4.02671793,2088.8,2087.9,0.57433286]
[1770505528244,0.01271544,2088.8,2087.9,0.57433286]
[1770505528442,0.01271544,2088.6,2087.8,0.57923082]
[1770505528641,5.85076723,2088.9,2087.8,0.57923082]
[1770505528642,0.01271544,2088.4,2087.8,0.57923082]
[1770505528843,0.01764684,2088.4,2087.8,0.57923082]
[1770505531247,0.0049314,2088.4,2087.8,0.57923082]
[1770505531444,42.40427403,2089.0,2087.8,0.57923082]
[1770505531645,0.02390697,2088.8,2087.8,0.57923082]
[1770505531848,0.02390697,2088.6,2087.9,0.57433286]
[1770505532049,4.03596603,2088.5,2087.9,0.57433286]
[1770505532249,0.02390697,2088.6,2087.9,0.57433286]
[1770505532550,4.03779918,2088.5,2087.9,0.57433286]
[1770505532852,0.0299821,2088.6,2087.9,0.57433286]
[1770505533152,0.52373033,2088.9,2087.9,0.57433286]
[1770505533349,0.52373033,2088.8,2087.9,0.57433286]
[1770505534347,0.52924404,2088.8,2087.9,0.57433286]
[1770505535250,0.52373033,2088.7,2087.9,0.57433286]
[1770505538152,42.40427403,2088.6,2087.8,0.00489796]
[1770505538357,0.54370536,2088.3,2087.8,0.55759357]
[1770505539364,0.54370536,2088.3,2087.8,0.56377888]
[1770505539861,42.40427403,2088.6,2087.8,0.56377888]
[1770505540062,42.94797939,2088.6,2087.8,0.56377888]
[1770505541361,42.40427403,2088.5,2087.8,0.56377888]
[1770505541561,42.94797939,2088.5,2087.8,0.56377888]
[1770505543073,0.54370536,2088.4,2087.8,0.56377888]
[1770505543266,0.54370536,2088.4,2087.8,0.00618531]
[1770505543465,0.54370536,2088.4,2087.8,0.58445875]
[1770505544070,0.54370536,2088.3,2087.8,0.58445875]
[1770505544370,0.54370536,2088.1,2087.5,0.57827344]
[1770505545170,4.03330901,2088.0,2087.5,0.57827344]
[1770505545370,4.03330901,2087.9,2087.5,0.5844093]
[1770505545571,0.54370536,2088.1,2087.5,0.0191586]
[1770505545869,46.43597425,2088.2,2087.5,0.0191586]
[1770505546072,4.03170022,2088.1,2087.5,0.0191586]
[1770505546372,4.57540558,2088.1,2087.5,0.0191586]
[1770505546572,4.03170022,2088.0,2087.5,0.0191586]
[1770505546767,4.03170022,2087.9,2087.5,0.0191586]
[1770505546968,0.54370536,2088.1,2087.5,0.0191586]
[1770505547172,4.03114049,2088.0,2087.5,0.0191586]
[1770505547471,4.03114049,2087.9,2087.5,0.0191586]
[1770505547672,0.54370536,2088.1,2087.5,0.0191586]
[1770505547870,4.03025903,2088.0,2087.5,0.0191586]
[1770505548075,4.03025903,2087.9,2087.5,0.0191586]
[1770505548367,0.54370536,2088.1,2087.5,0.0191586]
[1770505548673,4.02960282,2088.0,2087.5,0.0191586]
[1770505548874,4.02960282,2087.9,2087.5,0.0191586]
[1770505549173,0.54370536,2088.1,2087.5,0.0191586]
[1770505549466,4.57357656,2088.0,2087.5,0.0191586]
[1770505549671,4.0298712,2087.9,2087.5,0.0191586]
[1770505549868,0.54370536,2088.1,2087.5,0.0191586]
[1770505550067,4.57358534,2088.0,2087.5,0.0191586]
[1770505550268,4.02987998,2087.9,2087.5,0.0191586]
[1770505551071,0.54370536,2088.0,2087.5,0.0191586]
[1770505551273,4.02939233,2087.9,2087.5,0.0191586]
[1770505551469,0.54370536,2088.0,2087.5,0.0191586]
[1770505551666,4.02889673,2087.9,2087.5,0.0191586]
[1770505551870,0.54370536,2088.0,2087.5,0.0191586]
[1770505552067,0.54370536,2087.8,2086.7,0.23977]
[1770505552274,0.54370536,2087.8,2086.8,0.57827344]
[1770505552571,0.54370536,2087.9,2086.8,0.57827344]
[1770505552770,4.57143524,2087.8,2086.8,0.57827344]
[1770505552969,0.54370536,2087.8,2086.8,0.57827344]
[1770505553175,0.54370536,2087.8,2086.8,0.58324829]
[1770505553776,4.5723213,2087.7,2086.8,0.58324829]
[1770505553977,0.54370536,2087.5,2086.5,0.57827344]
[1770505554176,0.54370536,2087.3,2086.5,0.57827344]
[1770505554971,0.5470697,2087.3,2086.5,0.58341524]
[1770505555377,0.54370536,2087.1,2086.5,0.58341524]
[1770505555677,0.54370536,2087.1,2086.5,0.0051418]
[1770505555878,0.54370536,2087.1,2086.5,0.58341524]
[1770505556572,0.54370536,2087.1,2086.5,0.0051418]
[1770505556775,0.54370536,2087.1,2085.9,0.54190069]
[1770505557276,0.54370536,2086.8,2085.7,0.54425093]
[1770505557876,0.54370536,2086.8,2085.7,0.5486159]
[1770505561278,0.54370536,2086.8,2085.7,0.00436497]
[1770505561476,0.54370536,2086.7,2085.7,0.53643934]
[1770505561676,0.54370536,2086.7,2085.7,0.00436497]
[1770505562176,0.54370536,2086.4,2085.3,0.8447509]
[1770505562381,0.54370536,2086.4,2085.4,0.53207437]
[1770505563581,3.35932429,2086.8,2085.5,0.53391061]
[1770505563874,2.81561893,2087.2,2085.6,0.53391061]
[1770505564078,0.5470697,2087.3,2086.1,0.53391061]
[1770505564978,0.00336434,2087.3,2086.1,0.53391061]
[1770505565475,0.52770656,2087.3,2086.2,0.53073901]
[1770505566482,0.52434222,2087.2,2086.0,0.53060847]
[1770505568481,0.52434222,2087.1,2086.0,0.53060847]
[1770505568683,0.52434222,2087.1,2085.6,0.56486206]
[1770505569275,0.52434222,2086.8,2085.6,0.56486206]
[1770505569471,0.52434222,2086.8,2085.4,0.57859641]
[1770505569680,0.52434222,2086.7,2085.4,0.57859641]
[1770505569880,0.52434222,2086.4,2085.4,0.005088]
[1770505572279,0.55961362,2086.3,2085.0,0.5390805]
[1770505572490,0.55961362,2086.2,2085.0,0.5390805]
[1770505573184,0.55961362,2086.2,2085.0,0.54352658]
[1770505578582,0.55961362,2086.2,2085.0,0.00444608]
[1770505578787,0.55961362,2086.2,2085.0,0.54352658]
[1770505580293,0.55961362,2086.1,2085.0,0.54352658]
[1770505581393,0.55961362,2086.0,2085.0,0.54352658]
[1770505581693,3.37523255,2086.0,2085.0,0.00444608]
[1770505581893,0.55961362,2085.9,2085.0,0.00444608]
[1770505583390,0.55961362,2085.8,2085.0,0.00444608]
[1770505583592,0.55961362,2085.5,2085.0,0.00444608]
[1770505585091,0.55961362,2085.5,2085.0,0.54352658]
[1770505585685,0.55961362,2085.5,2085.0,0.00444608]
[1770505586691,0.55961362,2085.7,2085.0,0.54352658]
[1770505588597,0.56558627,2085.8,2085.0,0.54352658]
[1770505590395,0.56558627,2085.8,2085.0,0.00444608]
[1770505591093,0.00597265,2085.8,2085.0,0.54352658]
[1770505591496,0.56558627,2085.8,2085.0,0.54352658]
[1770505595798,0.56558627,2085.8,2085.0,0.00444608]
[1770505596002,0.53369664,2085.7,2085.0,0.00444608]
[1770505596299,0.53369664,2085.6,2085.0,0.00444608]
[1770505597300,3.34931557,2085.6,2085.0,0.00444608]
[1770505597496,0.53369664,2085.5,2085.0,0.00444608]
[1770505597797,0.53369664,2085.4,2084.6,0.56422984]
[1770505598504,2.81561893,2085.5,2084.6,0.56422984]
[1770505598689,3.34931557,2085.6,2084.6,0.56970401]
[1770505598892,0.53369664,2085.5,2084.6,0.56970401]
[1770505599291,0.53369664,2085.4,2084.6,0.56970401]
[1770505599592,0.53369664,2085.4,2084.4,3.71147927]
[1770505599796,0.53369664,2085.4,2084.1,7.11490678]
[1770505599797,0.53369664,2084.9,2084.1,0.56422984]
[1770505599993,2.81561893,2084.9,2084.1,0.56422984]
[1770505600197,0.53369664,2084.9,2084.1,0.56422984]
[1770505600392,2.81561893,2085.1,2084.1,0.56422984]
[1770505600592,3.34931557,2085.2,2084.1,0.56765721]
[1770505600793,0.53369664,2085.1,2084.1,0.56765721]
[1770505601000,0.53369664,2085.0,2084.1,0.56765721]
[1770505601198,0.53369664,2085.0,2083.8,6.27942224]
[1770505601199,0.53369664,2084.9,2083.8,6.27942224]
[1770505601394,3.34931557,2084.8,2083.9,0.56422984]
[1770505601596,0.53369664,2084.8,2083.9,0.56422984]
[1770505601906,0.53369664,2084.7,2083.9,0.56422984]
[1770505602700,2.81561893,2084.8,2083.9,0.57036453]
[1770505603005,3.34931557,2084.8,2083.9,0.57036453]
[1770505603201,0.53369664,2084.7,2083.9,0.57036453]
[1770505603406,0.53369664,2084.6,2083.9,0.57036453]
[1770505603599,3.34931557,2084.6,2083.9,0.00613469]
[1770505603799,3.34931557,2084.6,2083.9,0.57036453]
[1770505603800,0.53369664,2084.5,2083.9,0.57036453]
[1770505604100,3.34931557,2084.7,2083.9,0.57036453]
[1770505604299,0.53369664,2084.7,2083.9,0.57036453]
[1770505604799,0.53369664,2084.6,2083.9,0.00613469]
[1770505605505,0.53369664,2084.4,2083.9,0.00613469]
[1770505605704,0.53369664,2084.4,2083.5,0.56422984]
[1770505606696,0.53369664,2084.4,2083.5,0.56764926]
[1770505615908,0.53369664,2084.4,2083.5,0.00341942]
[1770505616108,0.53369664,2084.3,2083.5,0.00341942]
[1770505616308,0.5375637,2084.3,2083.5,0.00341942]
[1770505616514,0.5375637,2084.3,2083.5,0.56764926]
[1770505616715,0.5375637,2084.3,2083.0,0.56422984]
[1770505616908,0.53369664,2084.1,2083.0,0.56422984]
[1770505617812,0.53369664,2084.1,2083.0,0.56842568]
[1770505619709,3.34931557,2083.9,2082.7,0.56422984]
[1770505619915,0.53369664,2083.8,2082.7,0.56422984]
[1770505620914,0.53369664,2083.8,2082.7,0.57012381]
[1770505621115,0.53369664,2083.7,2082.7,0.57012381]
[1770505621318,0.53369664,2083.7,2082.3,0.56422984]
[1770505621813,0.53369664,2083.5,2082.3,0.56422984]
[1770505622518,0.53369664,2083.5,2082.3,0.56927651]
[1770505623217,0.53369664,2083.4,2082.3,0.56927651]
[1770505623817,0.53369664,2083.4,2081.8,0.56422984]
[1770505624010,0.53369664,2083.3,2082.1,0.56422984]
[1770505624816,0.53369664,2083.3,2082.1,0.56909522]
[1770505626614,0.53369664,2083.3,2082.1,0.53081096]
[1770505626814,0.57741943,2083.2,2082.1,0.53081096]
[1770505627112,0.57741943,2083.1,2082.1,0.00486538]
[1770505627709,0.57741943,2082.9,2081.6,0.52594558]
[1770505627913,0.57741943,2082.7,2081.4,0.52594558]
[1770505628714,0.58229427,2082.7,2081.4,0.53122839]
[1770505629316,0.57741943,2081.9,2080.6,0.56334546]
[1770505630314,0.57741943,2081.9,2080.6,0.56698323]
[1770505631111,0.57741943,2082.4,2080.6,0.56698323]
[1770505632323,0.56710194,2082.6,2081.1,0.24041]
[1770505632525,0.57197678,2082.7,2081.2,0.55744034]
[1770505632923,0.57197678,2082.7,2081.3,0.55744034]
[1770505633120,0.57197678,2082.7,2080.9,4.27751407]
[1770505633121,0.00487484,2082.7,2081.5,0.55744034]
[1770505633323,0.56710194,2083.5,2081.8,0.55744034]
[1770505633521,0.56710194,2084.0,2082.0,0.55744034]
[1770505634321,0.57061763,2084.0,2082.0,0.55744034]
[1770505635216,3.38623656,2084.0,2082.0,0.55744034]
[1770505635522,0.56710194,2083.6,2082.0,0.55744034]
[1770505636316,0.56710194,2083.6,2081.8,0.55744034]
[1770505636516,0.56710194,2083.1,2081.8,0.55744034]
[1770505641935,0.56710194,2083.0,2081.8,0.55744034]
[1770505642228,0.56710194,2082.9,2081.8,0.55744034]
[1770505642929,0.56710194,2082.9,2081.6,0.55744034]
[1770505643138,0.56710194,2082.9,2081.0,0.24043]
[1770505643139,3.38272087,2082.8,2081.4,0.55744034]
[1770505643433,0.56710194,2082.5,2081.4,0.55744034]
[1770505643729,0.57118022,2082.5,2081.4,0.55744034]
[1770505646128,0.56710194,2082.4,2081.4,0.55744034]
[1770505646927,0.56710194,2082.3,2080.7,0.55744034]
[1770505647128,0.56710194,2082.2,2080.7,0.55744034]
[1770505647929,0.56710194,2082.1,2080.7,0.55744034]
[1770505648936,0.56710194,2082.0,2080.7,0.55744034]
[1770505649639,2.81561893,2082.1,2080.7,0.55744034]
[1770505649640,0.56710194,2081.6,2080.7,0.55744034]
[1770505649834,0.56710194,2081.8,2080.7,0.55744034]
[1770505650235,3.38272087,2082.0,2080.7,0.55744034]
[1770505650437,0.56710194,2082.0,2080.7,0.55744034]
[1770505651039,0.56710194,2081.8,2080.7,0.55744034]
[1770505651431,0.56710194,2081.7,2080.7,0.55744034]
[1770505652136,0.56710194,2081.5,2080.6,0.59847799]
[1770505653239,0.56710194,2081.5,2079.8,4.36114269]
[1770505653240,2.81561893,2081.2,2079.8,0.64106896]
[1770505653435,0.56710194,2080.3,2079.3,0.55744034]
[1770505653641,0.56710194,2080.3,2078.8,0.3749377]
[1770505653839,0.56710194,2080.2,2078.8,0.3749377]
[1770505654038,1.38118733,2079.0,2077.2,0.57951373]
[1770505654341,15.174,2079.2,2077.3,0.70688491]
[1770505654537,0.00557344,2079.2,2077.7,0.57951373]
[1770505654733,0.00557344,2079.2,2077.8,0.57951373]
[1770505654937,0.00694616,2080.1,2078.1,0.57604065]
[1770505655140,1.38118733,2080.7,2078.6,0.57604065]
[1770505655334,0.00694616,2080.5,2078.6,0.57604065]
[1770505655538,0.00694616,2080.5,2078.8,0.57604065]
[1770505655939,0.00739891,2080.4,2079.0,0.57609422]
[1770505656339,0.00739891,2080.4,2078.8,0.00512849]
[1770505656340,0.00739891,2080.4,2079.2,0.57609422]
[1770505656740,0.00739891,2080.4,2078.9,0.12179774]
[1770505656741,0.00739891,2080.4,2079.4,0.57609422]
[1770505657236,0.00739891,2080.4,2079.5,0.12179774]
[1770505657438,0.00739891,2080.4,2079.5,0.69743508]
[1770505658643,0.00739891,2080.4,2079.5,0.12179774]
[1770505658849,0.01095869,2080.2,2078.8,0.57944282]
[1770505659238,0.01095869,2080.2,2078.8,0.00512849]
[1770505659438,0.01095869,2079.5,2078.8,0.00512849]
[1770505659642,0.01095869,2079.5,2078.4,0.57431433]
[1770505660043,0.01095869,2079.5,2077.8,0.57431433]
[1770505660243,0.01095869,2079.1,2077.8,0.57431433]
[1770505660647,0.01095869,2079.1,2077.8,0.58016388]
[1770505660944,0.01095869,2079.1,2077.8,0.00584955]
[1770505661247,0.0103497,2078.7,2077.8,0.00584955]
[1770505661449,0.0103497,2078.6,2077.8,0.00584955]
[1770505661847,0.0103497,2078.6,2077.4,0.57461882]
[1770505662944,0.0103497,2078.6,2077.4,0.57846375]
[1770505663747,0.00906723,2079.2,2077.6,0.57526006]
[1770505663949,0.00906723,2079.2,2077.8,0.57526006]
[1770505664648,1.3898458,2079.6,2077.9,0.57526006]
[1770505664856,0.01048233,2079.1,2077.9,0.57526006]
[1770505667253,0.00742894,2079.5,2077.9,0.57526006]
[1770505670153,0.00742894,2079.5,2078.0,0.57306699]
[1770505670460,0.00742894,2079.5,2078.2,0.57306699]
[1770505670755,0.00540368,2079.6,2078.2,0.57306699]
[1770505671054,0.01596859,2079.6,2078.2,0.57306699]
[1770505671255,0.00540368,2079.6,2078.6,0.57451121]
[1770505671453,0.01056491,2080.0,2078.6,0.57451121]
[1770505671755,0.01056491,2080.0,2078.7,0.57180937]
[1770505672453,0.01596859,2079.9,2078.7,0.57180937]
[1770505677354,0.02446792,2079.8,2078.7,0.57180937]
[1770505679556,6.21078937,2080.0,2078.7,0.57180937]
[1770505679557,1.48466527,2079.6,2078.7,0.57180937]
[1770505679862,0.55177948,2079.4,2078.2,0.5278002]
[1770505680255,0.55177948,2079.2,2078.2,0.5278002]
[1770505680660,2.81561893,2079.5,2078.2,0.5278002]
[1770505680661,0.55177948,2079.6,2078.3,0.5278002]
[1770505681255,4.03209912,2079.5,2078.3,0.5278002]
[1770505681558,4.03235442,2079.4,2078.3,0.5278002]
[1770505681753,0.55177948,2079.6,2078.3,0.5278002]
[1770505682356,4.03963084,2079.5,2078.3,0.5278002]
[1770505682552,0.55177948,2079.6,2078.3,0.5278002]
[1770505682758,4.03956232,2079.5,2078.3,0.5278002]
[1770505682953,0.55177948,2079.6,2078.3,0.5278002]
[1770505683157,4.03955418,2079.5,2078.3,0.5278002]
[1770505683361,0.55177948,2079.6,2078.3,0.5278002]
[1770505683362,4.03955418,2079.4,2078.3,0.5278002]
[1770505683558,0.55177948,2079.4,2078.3,0.5278002]
[1770505684263,2.81561893,2079.6,2078.3,0.5278002]
[1770505684465,0.58473724,2080.0,2078.9,0.24067]
[1770505684665,0.58473724,2080.0,2078.9,0.24646924]
[1770505685357,0.00494357,2080.0,2078.9,0.24646924]
[1770505685561,0.00494357,2080.0,2079.1,0.24064]
[1770505685954,0.58031152,2080.4,2079.2,0.24063]
[1770505686960,0.58490586,2080.4,2079.2,0.24063]
[1770505688665,0.00459434,2080.4,2079.2,0.24063]
[1770505688871,0.58685777,2081.0,2079.2,5.7151924]
[1770505689167,0.58685777,2080.8,2079.0,0.24066]
[1770505689564,0.58685777,2080.8,2079.3,0.24062]
[1770505690079,0.59207747,2080.8,2079.3,0.24062]
[1770505690264,0.59207747,2080.8,2079.5,0.2406]
[1770505690568,0.59207747,2080.8,2079.0,0.24066]
[1770505690771,0.59207747,2080.8,2079.3,0.24062]
[1770505690965,0.59207747,2080.8,2079.4,0.24061]
[1770505691166,0.59207747,2080.8,2079.2,5.7151924]
[1770505691367,0.0052197,2080.8,2079.2,5.7151924]
[1770505691571,0.0052197,2080.8,2079.8,0.24057]
[1770505691761,0.59975103,2080.8,2079.8,0.24057]
[1770505692167,0.0052197,2080.8,2079.8,0.24057]
[1770505693371,0.0052197,2080.8,2079.9,0.24055]
[1770505693772,0.0052197,2080.8,2080.0,0.24054]
[1770505693975,0.61332796,2081.8,2080.3,0.2405]
[1770505694971,0.61957035,2081.8,2080.3,0.2405]
[1770505695268,0.61957035,2081.8,2080.4,0.24049]
[1770505695473,0.61957035,2081.8,2080.4,0.24397803]
[1770505695878,0.61957035,2081.8,2080.5,0.24048]
[1770505696477,0.61957035,2081.8,2080.6,0.24047]
[1770505696779,0.00624239,2081.8,2080.9,0.24044]
[1770505697278,0.62312762,2082.9,2081.1,0.24041]
[1770505697581,0.62312762,2082.6,2080.5,0.24048]
[1770505698078,0.62312762,2082.2,2080.5,0.24048]
[1770505699476,0.61491662,2081.4,2080.4,0.00348803]
[1770505701980,0.6080687,2082.2,2080.4,0.00348803]
[1770505702277,4.816,2082.1,2080.4,0.00348803]
[1770505702479,0.6080687,2082.0,2080.4,0.00348803]
[1770505702778,0.6080687,2082.0,2080.8,0.24045]
[1770505708388,2.01364275,2081.9,2080.4,0.00348803]
[1770505708586,0.62379695,2081.8,2080.4,0.00348803]
[1770505710488,0.62379695,2081.8,2080.4,0.24397803]
[1770505710688,0.62379695,2081.8,2080.5,0.24048]
[1770505714690,0.62073238,2082.3,2081.0,0.24042]
[1770505715192,0.62257582,2082.1,2081.0,0.24042]
[1770505716187,0.62257582,2082.1,2081.1,0.24041]
[1770505717692,0.62257582,2082.1,2081.3,0.24039]
[1770505717894,0.62479583,2082.5,2081.3,0.24039]
[1770505719190,0.62479583,2082.5,2081.4,0.24038]
[1770505719598,0.62452199,2082.3,2080.9,0.24044]
[1770505720200,0.62452199,2082.1,2080.9,0.24044]
[1770505721198,0.62304067,2081.9,2080.9,0.24044]
[1770505721397,0.62304067,2081.9,2080.6,5.7151924]
[1770505721701,0.62304067,2081.7,2080.4,0.00348803]
[1770505722304,0.62304067,2081.5,2080.4,0.00348803]
[1770505725504,0.6359938,2081.3,2080.4,0.00348803]
[1770505729911,0.63036943,2081.8,2080.8,0.24045]
[1770505731216,0.63036943,2081.8,2080.9,0.24044]
[1770505731908,0.63036943,2081.8,2081.0,0.24043]
[1770505733311,0.53530214,2082.3,2081.0,0.39550688]
[1770505733615,0.53530214,2082.3,2080.9,5.7151924]
[1770505733616,0.53530214,2082.3,2081.3,0.39550688]
[1770505737623,0.53530214,2082.3,2081.6,0.41292539]
[1770505738916,0.53530214,2082.3,2081.7,0.40828522]
[1770505739520,0.53530214,2082.5,2081.7,0.40828522]
[1770505740119,0.00342866,2082.6,2081.9,0.64860522]
[1770505740323,0.5387308,2082.6,2082.0,0.40828522]
[1770505741324,0.5387308,2082.6,2081.9,0.24542462]
[1770505741828,0.5387308,2082.6,2081.9,0.00510462]
[1770505742234,0.5387308,2082.6,2081.5,0.40207509]
[1770505742918,0.5387308,2082.6,2081.3,0.24039]
[1770505743129,0.5387308,2082.6,2081.3,0.63773823]
[1770505743329,0.5387308,2082.6,2081.3,0.64269234]
[1770505744734,0.5387308,2082.6,2081.4,0.39734823]
[1770505747530,0.53299262,2082.5,2081.3,0.24534411]
[1770505747735,0.53299262,2082.5,2081.3,0.00495411]
[1770505747925,5.34899262,2082.5,2081.3,0.00495411]
[1770505748123,0.53299262,2082.2,2081.3,0.00495411]
[1770505748329,0.53299262,2082.2,2080.9,0.40740872]
[1770505749337,0.53299262,2082.1,2080.9,0.00389233]
[1770505749736,3.36100202,2082.0,2080.9,0.00389233]
[1770505749935,0.53299262,2081.9,2080.9,0.00389233]
[1770505750833,0.53299262,2081.8,2080.4,0.42606655]
[1770505751641,0.53299262,2081.8,2080.4,0.43047828]
[1770505752031,0.53299262,2081.8,2080.5,0.42515821]
[1770505752936,0.53299262,2081.8,2080.4,0.00441173]
[1770505756630,5.3833758,2081.7,2080.4,0.00441173]
[1770505756838,0.5673758,2081.6,2080.4,0.00441173]
[1770505757729,0.5673758,2081.4,2079.9,4.72265945]
[1770505757935,0.5673758,2081.3,2079.9,0.41771322]
[1770505758537,0.5673758,2081.2,2079.9,0.41771322]
[1770505758733,0.5673758,2081.2,2079.7,0.41340632]
[1770505758939,0.5673758,2081.2,2079.9,0.00407371]
[1770505759444,0.5673758,2081.1,2079.9,0.00407371]
[1770505759639,0.57233868,2081.1,2079.9,0.00407371]
[1770505764838,3.39790154,2081.1,2079.3,0.65731647]
[1770505765046,0.5673758,2081.0,2079.4,0.42077018]
[1770505765342,0.5673758,2081.0,2079.5,0.42077018]
[1770505765938,0.5673758,2081.0,2080.0,0.42077018]
[1770505766649,0.5673758,2081.0,2079.9,0.42077018]
[1770505767751,0.5673758,2081.0,2080.0,0.41330181]
[1770505769750,0.00496288,2081.1,2080.3,0.41248224]
[1770505769945,0.5673758,2081.4,2079.9,4.29964424]
[1770505769946,0.5673758,2081.4,2080.5,0.41248224]
[1770505770950,0.57255087,2081.4,2080.5,0.41248224]
[1770505771444,0.57255087,2081.4,2080.4,0.24049]
[1770505771650,0.57255087,2081.4,2080.2,0.41583246]
[1770505772150,0.5673758,2081.2,2080.2,0.41583246]
[1770505774753,0.5673758,2081.2,2079.9,0.42332975]
[1770505775953,7.64673793,2081.4,2079.9,0.42332975]
[1770505775954,0.54670095,2081.0,2079.9,0.42332975]
[1770505776254,0.54670095,2081.0,2079.7,0.42052269]
[1770505776455,0.54670095,2080.8,2079.7,0.42052269]
[1770505776754,0.54670095,2080.7,2079.7,0.42052269]
[1770505779151,0.54670095,2080.6,2079.7,0.42052269]
[1770505780054,0.54670095,2080.6,2079.5,0.42250967]
[1770505780759,0.54670095,2080.6,2079.6,0.41754002]
[1770505781451,0.54670095,2080.6,2079.7,0.41490018]
[1770505784551,0.54670095,2080.9,2079.7,0.41490018]
[1770505786458,0.54670095,2080.7,2079.7,0.43157706]
[1770505792669,0.54670095,2080.7,2079.9,0.42597034]
[1770505792862,0.54670095,2080.9,2079.9,0.42597034]
[1770505794468,0.54670095,2080.8,2079.7,0.42545998]
[1770505795168,0.54670095,2080.7,2079.6,0.43243558]
[1770505795468,0.54670095,2080.6,2079.6,0.43243558]
[1770505797561,0.54670095,2080.5,2079.5,0.00496965]
[1770505797764,0.54670095,2080.4,2079.5,0.00496965]
[1770505798569,0.54670095,2080.3,2079.5,0.00496965]
[1770505800571,0.54670095,2080.2,2079.1,0.43838702]
[1770505801068,0.54670095,2080.0,2078.8,0.43355317]
[1770505801259,0.54670095,2079.8,2078.6,0.43355317]
[1770505801466,0.55211613,2079.8,2078.6,0.43772461]
[1770505801761,0.54670095,2079.7,2078.6,0.43772461]
[1770505801963,0.00541518,2079.8,2078.7,0.43355317]
[1770505802163,0.00541518,2079.8,2078.8,0.67423317]
[1770505802365,0.00541518,2079.8,2078.9,0.43355317]
[1770505802566,0.55211613,2079.8,2078.9,0.43355317]
[1770505803670,0.54670095,2080.1,2079.0,0.43181586]
[1770505804176,0.54670095,2080.1,2079.1,0.43181586]
[1770505804370,0.54670095,2080.4,2079.2,0.67244586]
[1770505804574,0.54670095,2080.4,2079.3,0.43181586]
[1770505804872,0.55106419,2080.4,2079.4,0.43419923]
[1770505805071,0.55106419,2080.4,2079.5,0.43419923]
[1770505805469,0.54670095,2080.8,2079.9,0.43274407]
[1770505806476,0.55116052,2080.8,2079.8,0.67350521]
[1770505806671,0.55116052,2080.8,2079.9,0.43293521]
[1770505807375,0.55116052,2080.8,2079.7,0.44335351]
[1770505807577,0.57273368,2080.7,2079.7,0.44335351]
[1770505809383,0.00445957,2080.8,2079.7,4.98356775]
[1770505809679,0.57719325,2080.8,2079.9,0.44279136]
[1770505810573,0.57719325,2080.8,2080.0,0.44279136]
[1770505811382,0.00445957,2080.8,2080.0,0.44279136]
[1770505811581,0.00445957,2080.8,2080.1,0.43998786]
[1770505811777,0.57273368,2081.0,2080.1,0.44611862]
[1770505811981,0.56200594,2081.3,2080.2,0.43806148]
[1770505812779,0.56571052,2081.3,2080.2,0.43806148]
[1770505812975,0.56571052,2081.3,2080.3,0.43826207]
[1770505819591,0.57571052,2081.3,2080.3,0.43826207]
[1770505820286,0.57571052,2081.3,2080.4,0.44178844]
[1770505820487,0.01370458,2081.3,2080.6,0.44178844]
[1770505820685,0.57571052,2081.3,2080.6,0.44178844]
[1770505820891,0.57571052,2081.3,2080.5,0.68251466]
[1770505821090,0.57571052,2081.3,2080.3,0.44203466]
[1770505821486,0.57571052,2081.3,2080.2,4.29964424]
[1770505821687,0.57571052,2081.3,2080.1,0.44816542]
[1770505822585,0.57571052,2081.3,2080.4,0.44203466]